{"text_format":"1","workbook":"xlsx","n_sheets":1,"sheets":["Categorie"],"not_rendered":{"charts":0,"images":0,"macros":1,"external_links":0,"defined_names":1,"comments":0,"pivot_tables":0},"unopened":[],"bounds":{"document_bytes":16777216,"sheet_cells":100000,"rows_first":2000,"rows_last":500,"rows_between":2000,"halvings":0,"cell_chars":16384,"cell_head_chars":4096},"cells_cut":0,"cells_raw":0,"read":"whole","date_system":"1900"}

{"sheet":"Categorie","index":0,"n_rows":54,"n_cols":15,"rows_kept":54,"cut":false,"hidden":false,"merged":[]}
[0,"categ.","importo",{"$f":"COUNTIF(C2:C53,\">0\")","v":0},{"$f":"MAX(C2:C53)","v":0},{"$f":"COUNTIF(C2:C53,VALUE(E1))","v":52},28,"classifica","%","tipologia della categoria di qualificazione","declaratoria"]
[0,"OG 1",0,2,{"$f":"IF(C2>0,D2,0)","v":0},{"$f":"IF(D$1>0,C2/C$54*100,0)","v":0},{"$f":"IF(F2>10,D2,IF(C2>150000,D2,0))","v":0},null,null,null,"Edifici civili e industriali ","OG 1",null,null,"OS23"]
[0,"OG 2",0,2,{"$f":"IF(C3>0,D3,0)","v":0},{"$f":"IF(D$1>0,C3/C$54*100,0)","v":0},{"$f":"IF(F3>10,D3,IF(C3>150000,D3,0))","v":0},null,null,null,"Restauro e manutenzione dei beni immobili sottoposti a tutela …. ","OG 2"]
[0,"OG 3",0,2,0,0,0,null,null,null,"Strade, autostrade, ponti, viadotti, ferrovie, metropolitane .... ","OG 3"]
[0,"OG 4",0,2,0,0,0,null,null,null,"Opere d’arte nel sottosuolo ","OG 4"]
[0,"OG 5",0,2,0,0,0,null,null,null,"Dighe ","OG 5"]
[0,"OG 6",0,2,0,0,0,null,null,null,"Acquedotti, gasdotti , oleodotti, opere di irrigazione e di evacuazione ","OG 6"]
[0,"OG 7",0,2,0,0,0,null,null,null,"Opere marittime e lavori di dragaggio ","OG 7"]
[0,"OG 8",0,2,0,0,0,null,null,null,"Opere fluviali, di difesa, di sistemazione idraulica e di bonifica ","OG 8"]
[0,"OG 9",0,2,0,0,0,null,null,null,"Impianti per la produzione di energia elettrica ","OG 9"]
[0,"OG10",0,2,0,0,0,null,null,null,"Impianti per la trasformazione alta/media tensione e per la distribuzione di energia elettrica in corrente alternata e continua ","OG10"]
[0,"OG11",0,3,0,0,0,null,null,null,"Impianti tecnologici ","OG11",{"$f":"IF((M18+M46+M48)=3,(A18+A46+A48),0)","v":0},{"$f":"N18+N46+N48","v":0}]
[0,"OG12",0,2,0,0,0,null,null,null,"Opere ed impianti di bonifica e protezione ambientale ","OG12"]
[0,"OG13",0,2,0,0,0,null,null,null,"Opere di ingegneria naturalistica ","OG13"]
[0,"OS 1",0,1,0,0,0,null,null,null,"Lavori in terra ","OS 1"]
[0,"OS 2-A",0,3,0,0,0,null,null,null,"Superfici decorate di beni immobili del patrimonio culturale e beni culturali mobili di interesse storico, artistico, archeologico ed etnoantropologico ","OS 2-A"]
[0,"OS 2-B",0,3,0,0,0,null,null,null,"Beni culturali mobili di interesse archivistico e librario ","OS 2-B"]
[0,"OS 3",0,2,0,0,0,null,null,null,"Impianti idrico-sanitario, cucine, lavanderie ","OS 3",{"$f":"IF(A18>0,1,0)","v":0},{"$f":"IF(A18>0,IF(A18>=M$12*10%,1,0),0)","v":0}]
[0,"OS 4",0,3,0,0,0,null,null,null,"Impianti elettromeccanici trasportatori ","OS 4"]
[0,"OS 5",0,2,0,0,0,null,null,null,"Impianti pneumatici e antintrusione ","OS 5"]
[0,"OS 6",0,1,0,0,0,null,null,null,"Finiture di opere generali in materiali lignei, plastici, metallici e vetrosi ","OS 6"]
[0,"OS 7",0,1,0,0,0,null,null,null,"Finiture di opere generali di natura edile ","OS 7"]
[0,"OS 8",0,2,0,0,0,null,null,null,"Finiture di opere generali di natura tecnica ","OS 8"]
[0,"OS 9",0,1,0,0,0,null,null,null,"Impianti per la segnaletica luminosa e la sicurezza del traffico","OS 9"]
[0,"OS10",0,2,0,0,0,null,null,null,"Segnaletica stradale non luminosa","OS10"]
[0,"OS11",0,3,0,0,0,null,null,null,"Apparecchiature strutturali speciali","OS11"]
[0,"OS12-A",0,3,0,0,0,null,null,null,"Barriere stradali di sicurezza","OS12-A"]
[0,"OS12-B",0,3,0,0,0,null,null,null,"Barriere paramassi, fermaneve e simili","OS12-B"]
[0,"OS13",0,3,0,0,0,null,null,null,"Strutture prefabbricate in cemento armato","OS13"]
[0,"OS14",0,3,0,0,0,null,null,null,"Impianti di smaltimento e recupero rifiuti","OS14"]
[0,"OS15",0,1,0,0,0,null,null,null,"Pulizia di acque marine, lacustri, fluviali","OS15"]
[0,"OS16",0,1,0,0,0,null,null,null,"Impianti per centrali produzione energia elettrica","OS16"]
[0,"OS17",0,1,0,0,0,null,null,null,"Linee telefoniche ed impianti di telefonia","OS17"]
[0,"OS18-A",0,3,0,0,0,null,null,null,"Componenti strutturali in acciaio","OS18-A"]
[0,"OS18-B",0,3,0,0,0,null,null,null,"Componenti per facciate continue","OS18-B"]
[0,"OS19",0,1,0,0,0,null,null,null,"Impianti di reti di telecomunicazione e di trasmissioni e trattamento ….","OS19"]
[0,"OS20-A",0,2,0,0,0,null,null,null,"Rilevamenti topografici","OS20-A"]
[0,"OS20-B",0,2,0,0,0,null,null,null,"Indagini geognostiche","OS20-B"]
[0,"OS21",0,3,0,0,0,null,null,null,"Opere strutturali speciali","OS21"]
[0,"OS22",0,1,0,0,0,null,null,null,"Impianti di potabilizzazione e depurazione","OS22"]
[0,"OS23",0,1,1,0,0,null,null,null,"Demolizione di opere","OS23"]
[0,"OS24",0,2,{"$f":"IF(C42>0,D42,0)","v":0},0,{"$f":"IF(F42>10,D42,IF(C42>150000,D42,0))","v":0},null,null,null,"Verde e arredo urbano","OS24"]
[0,"OS25",0,3,0,{"$f":"IF(D$1>0,C43/C$54*100,0)","v":0},0,null,null,null,"Scavi archeologici","OS25"]
[0,"OS26",0,1,0,0,0,null,null,null,"Pavimentazioni e sovrastrutture speciali","OS26"]
[0,"OS27",0,1,0,0,{"$f":"IF(F45>10,D45,IF(C45>150000,D45,0))","v":0},null,null,null,"Impianti per la trazione elettrica","OS27"]
[0,"OS28",0,2,{"$f":"IF(C46>0,D46,0)","v":0},0,0,null,null,null,"Impianti termici e di condizionamento","OS28",{"$f":"IF(A46>0,1,0)","v":0},{"$f":"IF(A46>0,IF(A46>=M$12*25%,1,0),0)","v":0}]
[0,"OS29",0,1,0,0,0,null,null,null,"Armamento ferroviario","OS29"]
[0,"OS30",0,3,0,0,0,null,null,null,"Impianti interni elettrici, telefonici, radiotelefonici e televisivi","OS30",{"$f":"IF(A48>0,1,0)","v":0},{"$f":"IF(A48>0,IF(A48>=M$12*25%,1,0),0)","v":0}]
[0,"OS31",0,1,0,0,0,null,null,null,"Impianti per la mobilità sospesa","OS31"]
[0,"OS32",0,3,0,0,0,null,null,null,"Strutture in legno","OS32"]
[0,"OS33",0,2,0,0,0,null,null,null,"Coperture speciali","OS33"]
[0,"OS34",0,2,0,0,0,null,null,null,"Sistemi antirumore per infrastrutture di mobilità","OS34"]
[0,"OS35",0,2,0,0,0,null,null,null,"Interventi a basso impatto ambientale","OS35"]
[null,"TOTALE",{"$f":"IF(C12>0,SUM(C2:C17)+SUM(C19:C45)+C47+SUM(C49:C53),SUM(C2:C11)+SUM(C13:C53))","v":0},null,null,null,null,null,{"$f":"SUM(I2:I53)","v":0}]